bitfinex-derivatives/quotes_SOLF0:USTF0_20241215
["timestamp","ask_amount","ask_price","bid_price","bid_amount"]
[1734223299796,2.281,219.21,219.16,9.2683286]
[1734223301198,11.33704823,219.23,219.16,9.2683286]
[1734223301393,9.0468286,219.24,219.14,2.2817]
[1734223301601,6.9868286,219.22,219.15,6.9868286]
[1734223302302,2.2812,219.19,219.15,6.9868286]
[1734223310601,1.4408,219.24,219.17,6.9868286]
[1734223310803,1.4408,219.24,219.19,6.9868286]
[1734223311003,2.06,219.25,219.19,6.9868286]
[1734223311405,12.79785309,219.26,219.19,6.9868286]
[1734223311603,14.85785309,219.26,219.19,6.9868286]
[1734223311909,3.5096,219.26,219.19,6.9868286]
[1734223312711,2.2807,219.24,219.19,6.9868286]
[1734223313007,3.5096,219.26,219.21,6.9868286]
[1734223313308,4.3404,219.27,219.21,6.9868286]
[1734223313609,2.06,219.27,219.23,6.9868286]
[1734223313802,11.34950064,219.28,219.23,6.9868286]
[1734223313997,8.4149286,219.29,219.23,6.9868286]
[1734223313998,10.4749286,219.29,219.23,6.9868286]
[1734223314607,2.2804,219.27,219.23,6.9868286]
[1734223315802,21.6556063,219.27,219.23,6.9868286]
[1734223316007,19.3752063,219.26,219.23,6.9868286]
[1734223316204,8.02182656,219.25,219.23,6.9868286]
[1734223316404,2.06,219.3,219.24,6.9868286]
[1734223316603,4.34,219.31,219.26,6.9868286]
[1734223316807,29.35739977,219.31,219.26,6.9868286]
[1734223317108,25.01739977,219.3,219.26,6.9868286]
[1734223317306,19.376777,219.29,219.26,6.9868286]
[1734223317604,8.02245557,219.28,219.26,6.9868286]
[1734223317909,8.02245557,219.29,219.26,6.9868286]
[1734223318506,8.02245557,219.29,219.26,9.2672286]
[1734223318909,8.02245557,219.3,219.26,6.9868286]
[1734223319310,19.376777,219.3,219.24,9.2674286]
[1734223319614,8.02245557,219.29,219.24,6.9868286]
[1734223319908,8.02245557,219.29,219.25,2.2806]
[1734223320106,11.35432143,219.29,219.25,2.2806]
[1734223320312,8.02245557,219.28,219.25,2.2806]
[1734223320612,19.376777,219.29,219.25,2.2806]
[1734223320810,8.02245557,219.28,219.25,2.2806]
[1734223322505,8.02245557,219.28,219.26,6.9868286]
[1734223322701,19.376777,219.29,219.26,6.9868286]
[1734223322904,19.376777,219.28,219.26,6.9868286]
[1734223323102,11.35432143,219.27,219.26,9.2673286]
[1734223323302,15.67422143,219.32,219.26,9.2673286]
[1734223323507,19.38611889,219.31,219.26,9.2673286]
[1734223323708,11.35432143,219.31,219.26,9.2673286]
[1734223323908,4.3199,219.32,219.26,9.2673286]
[1734223324104,2.2799,219.31,219.26,9.2673286]
[1734223324811,13.64777072,219.31,219.26,9.2673286]
[1734223325111,11.36787072,219.3,219.26,9.2673286]
[1734223325311,11.36787072,219.3,219.22,2.04]
[1734223325312,2.2798,219.33,219.28,6.9868286]
[1734223325508,4.3198,219.33,219.28,6.9868286]
[1734223325711,2.04,219.33,219.28,6.9868286]
[1734223325911,2.04,219.33,219.21,1.4033]
[1734223325912,19.4052747,219.33,219.3,6.9868286]
[1734223326107,6.9868286,219.37,219.3,6.9868286]
[1734223326414,22.7128722,219.37,219.3,6.9868286]
[1734223326608,19.40740148,219.36,219.3,6.9868286]
[1734223326808,8.03634183,219.35,219.3,6.9868286]
[1734223327726,8.03634183,219.35,219.3,9.2668286]
[1734223327928,19.40740148,219.35,219.3,9.2668286]
[1734223328121,8.03634183,219.34,219.3,9.2668286]
[1734223328424,11.37105965,219.35,219.3,9.2668286]
[1734223328621,11.37105965,219.34,219.3,9.2668286]
[1734223328817,2.2795,219.36,219.3,9.2668286]
[1734223329619,13.6451508,219.36,219.3,9.2668286]
[1734223329824,8.03032998,219.35,219.3,9.2668286]
[1734223330123,19.39598078,219.35,219.3,9.2668286]
[1734223330322,11.3656508,219.35,219.3,9.2668286]
[1734223330623,2.2795,219.36,219.3,9.2668286]
[1734223330817,13.64070039,219.36,219.3,9.2668286]
[1734223331021,11.36120039,219.35,219.3,9.2668286]
[1734223331222,11.36120039,219.34,219.33,2.2797]
[1734223331420,6.9868286,219.45,219.33,6.9868286]
[1734223331620,2.04,219.45,219.38,6.9868286]
[1734223331925,34.05295461,219.46,219.39,2.2791]
[1734223332220,19.38461913,219.45,219.38,6.9868286]
[1734223332427,11.35903376,219.45,219.38,6.9868286]
[1734223332630,9.0268286,219.46,219.38,6.9868286]
[1734223332918,11.35069702,219.46,219.4,6.9868286]
[1734223333120,11.35069702,219.45,219.42,6.9868286]
[1734223333326,2.04,219.46,219.42,6.9868286]
[1734223334022,13.38013632,219.46,219.42,6.9868286]
[1734223334224,4.3184,219.46,219.42,6.9868286]
[1734223336128,2.04,219.46,219.42,6.9868286]
[1734223336523,2.2783,219.48,219.44,6.9868286]
[1734223337023,2.278,219.5,219.44,6.9868286]
[1734223337221,2.04,219.54,219.46,6.9868286]
[1734223337423,28.34266479,219.54,219.46,6.9868286]
[1734223337630,13.59654924,219.53,219.48,6.9868286]
[1734223337821,11.3129389,219.52,219.48,6.9868286]
[1734223338022,2.2777,219.53,219.48,6.9868286]
[1734223338229,21.58235048,219.53,219.48,6.9868286]
[1734223338425,2.04,219.54,219.48,6.9868286]
[1734223338426,11.3123706,219.52,219.48,6.9868286]
[1734223338724,4.3176,219.54,219.48,6.9868286]
[1734223338725,2.2776,219.54,219.48,6.9868286]
[1734223339130,13.58095426,219.54,219.48,6.9868286]
[1734223339328,2.2776,219.54,219.48,6.9868286]
[1734223340431,60.20912094,219.56,219.5,6.9868286]
[1734223340627,60.20912094,219.56,219.52,6.9868286]
[1734223341329,60.20912094,219.56,219.46,2.2784]
[1734223341526,60.20912094,219.56,219.52,6.9868286]
[1734223342027,2.2773,219.57,219.52,6.9868286]
[1734223345022,9.0268286,219.59,219.54,6.9868286]
[1734223345023,2.04,219.59,219.54,6.9868286]
[1734223345227,3.4429,219.62,219.54,6.9868286]
[1734223345431,10.4297286,219.62,219.54,6.9868286]
[1734223346133,2.277,219.6,219.54,6.9868286]
[1734223346929,5.7197,219.62,219.56,6.9868286]
[1734223347328,2.2768,219.62,219.56,6.9868286]
[1734223348129,2.2768,219.62,219.58,6.9868286]
[1734223349037,2.2765,219.64,219.58,6.9868286]
[1734223349835,2.2766,219.63,219.58,6.9868286]
[1734223350233,9.0268286,219.66,219.58,6.9868286]
[1734223350430,6.9868286,219.64,219.54,1.5275]
[1734223350626,6.9868286,219.64,219.56,6.9868286]
[1734223350831,2.2771,219.59,219.56,6.9868286]
[1734223351030,9.0268286,219.62,219.54,6.9868286]
[1734223351438,2.277,219.6,219.56,6.9868286]
[1734223351737,2.04,219.62,219.56,6.9868286]
[1734223352536,4.3167,219.62,219.56,6.9868286]
[1734223353234,4.3167,219.62,219.58,6.9868286]
[1734223353439,2.04,219.62,219.58,6.9868286]
[1734223353638,2.2766,219.64,219.58,6.9868286]
[1734223353931,2.2766,219.64,219.6,6.9868286]
[1734223354140,2.04,219.65,219.6,6.9868286]
[1734223355238,4.3164,219.65,219.6,6.9868286]
[1734223355535,2.04,219.69,219.62,6.9868286]
[1734223355737,2.276,219.69,219.64,6.9868286]
[1734223356238,6.9868286,219.72,219.64,6.9868286]
[1734223356429,2.04,219.71,219.64,6.9868286]
[1734223357041,2.2759,219.7,219.64,6.9868286]
[1734223357338,2.2759,219.7,219.66,6.9868286]
[1734223358342,6.9868286,219.69,219.51,4.3253]
[1734223358542,6.9868286,219.69,219.61,6.9868286]
[1734223358732,2.2764,219.66,219.61,6.9868286]
[1734223358937,2.2764,219.66,219.63,6.9868286]
[1734223359138,2.04,219.71,219.63,6.9868286]
[1734223360533,6.9868286,219.7,219.57,2.04]
[1734223360735,6.9868286,219.7,219.62,6.9868286]
[1734223361330,2.2764,219.65,219.62,6.9868286]
[1734223363135,4.3163,219.67,219.64,6.9868286]
[1734223364234,2.2763,219.67,219.64,6.9868286]
[1734223364642,2.04,219.69,219.64,6.9868286]
[1734223364643,4.3161,219.69,219.64,6.9868286]
[1734223366134,2.04,219.69,219.64,6.9868286]
[1734223366340,2.2761,219.68,219.64,6.9868286]
[1734223367239,4.316,219.69,219.64,6.9868286]
[1734223368737,2.2761,219.68,219.64,6.9868286]
[1734223370038,2.04,219.69,219.64,6.9868286]
[1734223370039,2.2762,219.67,219.64,6.9868286]
[1734223371334,4.3161,219.69,219.64,6.9868286]
[1734223372041,4.3161,219.69,219.63,2.2766]
[1734223372042,4.3161,219.69,219.66,6.9868286]
[1734223373040,258.7542221,219.89,219.68,6.9868286]
[1734223373041,188.94916658,219.89,219.68,6.9868286]
[1734223373245,11.2705308,219.88,219.69,3.4372]
[1734223373543,5.59358629,219.91,219.85,6.9868286]
[1734223373544,2.2738,219.9,219.85,6.9868286]
[1734223373743,2.04,219.9,219.85,6.9868286]
[1734223374441,5.59358629,219.91,219.85,6.9868286]
[1734223374739,4.314,219.89,219.85,6.9868286]
[1734223375242,4.314,219.89,219.81,10.92924323]
[1734223375637,2.04,219.89,219.81,10.92924323]
[1734223375836,2.04,219.89,219.78,4.315]
[1734223375837,2.2741,219.88,219.78,4.315]
[1734223376041,2.2741,219.88,219.79,10.92924323]
[1734223376945,11.27514075,219.88,219.82,10.92924323]
[1734223377140,1.4813,219.93,219.85,10.92924323]
[1734223377340,2.08,219.94,219.85,10.92924323]
[1734223377547,5.33970507,219.96,219.85,10.92924323]
[1734223377747,24.5886363,219.96,219.85,10.92924323]
[1734223377943,19.24893123,219.95,219.85,10.92924323]
[1734223378249,19.24893123,219.94,219.85,10.92924323]
[1734223378437,2.08,219.97,219.85,10.92924323]
[1734223378438,19.24893123,219.93,219.85,10.92924323]
[1734223378637,11.27994651,219.92,219.85,13.20354323]
[1734223378942,2.08,219.97,219.85,13.20354323]
[1734223379343,2.08,219.96,219.85,13.20354323]
[1734223379537,21.31360252,219.96,219.85,10.92924323]
[1734223379744,2.2734,219.94,219.86,2.2742]
[1734223380042,21.50700252,219.94,219.86,2.2742]
[1734223380243,11.2713075,219.93,219.86,2.2742]
[1734223382046,11.2713075,219.93,219.88,10.92924323]
[1734223382244,11.2713075,219.93,219.86,2.2742]
[1734223384841,11.2713075,219.93,219.87,2.08]
[1734223385038,11.2713075,219.93,219.88,2.274]
[1734223386047,11.2713075,219.93,219.87,2.08]
[1734223387349,11.2713075,219.93,219.88,2.2739]
[1734223388645,11.2713075,219.93,219.88,4.3539]
[1734223389246,2.2733,219.95,219.88,4.3539]
[1734223390256,2.2734,219.95,219.85,10.92924323]
[1734223390449,7.95398055,219.97,219.85,10.92924323]
[1734223390650,10.92924323,219.97,219.86,2.08]
[1734223390857,11.26286362,219.96,219.86,2.08]
[1734223391059,2.08,219.95,219.86,2.08]
[1734223391350,2.2736,219.93,219.86,2.08]
[1734223391552,2.08,219.95,219.86,2.08]
[1734223392652,2.2737,219.92,219.86,2.08]
[1734223393046,2.2737,219.92,219.84,2.2743]
[1734223393253,2.2737,219.92,219.85,2.08]
[1734223393455,2.2737,219.92,219.85,4.3543]
[1734223393752,2.08,219.95,219.84,2.08]
[1734223393958,2.8782,219.94,219.82,2.08]
[1734223394151,2.2738,219.91,219.82,2.08]
[1734223394351,2.08,219.91,219.82,2.08]
[1734223395556,2.2741,219.88,219.81,15.28394323]
[1734223396754,2.2741,219.88,219.81,13.20394323]
[1734223396955,2.2741,219.88,219.81,15.28394323]
[1734223397249,2.2739,219.9,219.82,2.2746]
[1734223397654,2.08,219.91,219.85,2.2743]
[1734223397854,4.3531,219.94,219.84,10.92924323]
[1734223397855,2.2738,219.9,219.84,10.92924323]
[1734223398149,6.4331,219.94,219.84,10.92924323]
[1734223399052,2.274,219.89,219.84,10.92924323]
[1734223399658,6.4331,219.94,219.84,10.92924323]
[1734223399965,2.274,219.88,219.84,10.92924323]
[1734223401255,2.2738,219.92,219.86,6.99442884]
[1734223401456,13.42752884,219.94,219.86,6.99442884]
[1734223402658,2.2741,219.89,219.86,6.99442884]
[1734223403256,13.42752884,219.94,219.82,2.08]
[1734223403561,6.99442884,219.92,219.81,2.08]
[1734223403761,6.99442884,219.92,219.83,6.99442884]
[1734223403959,2.2744,219.87,219.83,6.99442884]
[1734223405459,2.2744,219.86,219.83,6.99442884]
[1734223405667,9.07442884,219.9,219.62,13.7]
[1734223405852,9.07442884,219.9,219.61,199.5536]
[1734223405853,6.99442884,219.86,219.79,6.99442884]
[1734223406057,2.275,219.81,219.79,6.99442884]
[1734223409062,2.275,219.8,219.79,6.99442884]
[1734223409564,4.9378,219.85,219.79,6.99442884]
[1734223409763,2.275,219.81,219.79,6.99442884]
[1734223411958,2.2748,219.83,219.79,6.99442884]
[1734223412567,4.9378,219.85,219.79,6.99442884]
[1734223412762,2.275,219.81,219.76,5.50098616]
[1734223412966,16.2541659,219.85,219.79,6.99442884]
[1734223413163,4.9378,219.85,219.79,6.99442884]
[1734223413571,12.9418994,219.85,219.79,6.99442884]
[1734223413763,2.2748,219.82,219.79,6.99442884]
[1734223414968,2.2747,219.84,219.79,6.99442884]
[1734223415164,11.93222884,219.85,219.76,6.99442884]
[1734223415363,6.99442884,219.83,219.76,6.99442884]
[1734223417469,2.2752,219.79,219.76,6.99442884]
[1734223417670,4.3352,219.79,219.76,6.99442884]
[1734223418867,2.06,219.79,219.76,6.99442884]
[1734223419067,2.2753,219.78,219.76,6.99442884]
[1734223419370,2.06,219.79,219.76,6.99442884]
[1734223419572,4.3352,219.79,219.76,6.99442884]
[1734223419771,2.06,219.79,219.76,6.99442884]
[1734223420671,2.2754,219.78,219.76,6.99442884]
[1734223420870,2.06,219.79,219.76,6.99442884]
[1734223422272,2.06,219.79,219.72,5.33756989]
[1734223422473,2.06,219.79,219.75,6.99442884]
[1734223422474,4.3352,219.79,219.75,6.99442884]
[1734223424974,2.06,219.79,219.75,6.99442884]
[1734223425677,4.3352,219.79,219.75,6.99442884]
[1734223427078,2.2753,219.78,219.75,6.99442884]
[1734223430077,2.06,219.81,219.77,9.26982884]
[1734223430282,2.06,219.81,219.79,6.99442884]
[1734223431988,2.06,219.83,219.79,6.99442884]
[1734223432183,2.06,219.83,219.81,6.99442884]
[1734223432385,4.9178,219.85,219.81,6.99442884]
[1734223434890,4.9178,219.85,219.79,6.99442884]
[1734223436190,4.9178,219.85,219.79,9.26952884]
[1734223437092,7.1923,219.85,219.79,9.26952884]
[1734223437391,4.9178,219.85,219.79,6.99442884]
[1734223438593,2.2746,219.84,219.79,6.99442884]
[1734223439391,16.31065186,219.85,219.79,6.99442884]
[1734223439592,4.9178,219.85,219.79,6.99442884]
[1734223439993,7.1924,219.85,219.79,6.99442884]
[1734223441993,4.9178,219.85,219.79,6.99442884]
[1734223442193,11.91222884,219.85,219.77,6.99442884]
[1734223442395,11.3940572,219.84,219.77,6.99442884]
[1734223443692,2.2749,219.82,219.77,6.99442884]
[1734223444497,4.2951,219.81,219.77,6.99442884]
[1734223444791,4.2951,219.81,219.75,6.99442884]
[1734223445193,2.02,219.81,219.75,6.99442884]
[1734223445794,2.2752,219.79,219.75,6.99442884]
[1734223446594,13.6692572,219.79,219.75,6.99442884]
[1734223446896,2.2752,219.79,219.75,6.99442884]
[1734223447796,13.68082373,219.79,219.75,6.99442884]
[1734223448092,2.2752,219.79,219.75,6.99442884]
[1734223448304,2.02,219.81,219.75,6.99442884]
[1734223448593,2.02,219.81,219.69,2.02]
[1734223448594,28.48626472,219.81,219.69,2.02]
[1734223448801,19.47183588,219.8,219.74,6.99442884]
[1734223448995,8.0610901,219.79,219.74,6.99442884]
[1734223449189,2.2754,219.77,219.74,6.99442884]
[1734223449590,11.41074578,219.78,219.74,6.99442884]
[1734223449795,2.2753,219.79,219.74,6.99442884]
[1734223450198,21.75090487,219.79,219.74,6.99442884]
[1734223450400,11.41295234,219.78,219.72,2.2759]
[1734223450594,2.2753,219.78,219.74,6.99442884]
[1734223450995,2.2753,219.78,219.72,2.2759]
[1734223451196,2.2753,219.78,219.74,6.99442884]
[1734223451800,13.69171013,219.78,219.74,6.99442884]
[1734223451992,2.2753,219.78,219.74,6.99442884]
[1734223453404,13.69145952,219.78,219.74,6.99442884]
[1734223453598,2.2753,219.78,219.74,6.99442884]
[1734223454800,13.6899899,219.78,219.74,6.99442884]
[1734223455101,2.2753,219.78,219.74,6.99442884]
[1734223455897,11.41346681,219.81,219.76,6.99442884]
[1734223456101,2.02,219.81,219.76,6.99442884]
[1734223456401,4.295,219.82,219.76,6.99442884]
[1734223456602,23.77353472,219.82,219.76,6.99442884]
[1734223456801,11.41469743,219.81,219.76,6.99442884]
[1734223457098,4.295,219.82,219.76,6.99442884]
[1734223457503,15.70985054,219.82,219.76,6.99442884]
[1734223457704,11.41485054,219.81,219.76,9.26982884]
[1734223457906,4.295,219.82,219.76,9.26982884]
[1734223458401,13.6900663,219.82,219.76,9.26982884]
[1734223458599,2.02,219.81,219.76,9.26982884]
[1734223459806,2.02,219.83,219.78,6.99442884]
[1734223460006,2.02,219.83,219.8,6.99442884]
[1734223460402,13.43653992,219.83,219.8,6.99442884]
[1734223460609,2.02,219.83,219.8,6.99442884]
[1734223461304,13.4361104,219.83,219.8,6.99442884]
[1734223461507,2.02,219.83,219.8,6.99442884]
[1734223461907,4.2946,219.85,219.8,6.99442884]
[1734223462806,2.2749,219.82,219.78,6.99442884]
[1734223463108,2.2749,219.82,219.74,1.5026]
[1734223463314,2.02,219.81,219.77,6.99442884]
[1734223465112,11.4122679,219.83,219.79,6.99442884]
[1734223465308,11.41252622,219.82,219.79,6.99442884]
[1734223465512,2.02,219.83,219.79,6.99442884]
[1734223465906,4.2948,219.83,219.79,6.99442884]
[1734223466207,15.70749185,219.83,219.79,6.99442884]
[1734223466412,4.2948,219.83,219.79,6.99442884]
[1734223466812,4.2948,219.83,219.77,9.26982884]
[1734223467004,15.70779156,219.83,219.77,9.26982884]
[1734223467204,4.2948,219.83,219.77,9.26982884]
[1734223467806,2.2749,219.82,219.77,6.99442884]
[1734223470114,13.68818554,219.82,219.77,6.99442884]
[1734223470310,2.2749,219.82,219.76,2.2755]
[1734223470514,2.275,219.81,219.76,6.99442884]
[1734223470710,11.41304821,219.82,219.76,6.99442884]
[1734223470910,11.41304821,219.81,219.76,6.99442884]
[1734223471111,6.99442884,219.82,219.74,6.99442884]
[1734223471312,2.2752,219.79,219.74,6.99442884]
[1734223471516,4.2952,219.79,219.74,6.99442884]
[1734223472110,2.2753,219.78,219.74,6.99442884]
[1734223474020,2.2753,219.78,219.74,9.27012884]
[1734223480826,4.2952,219.79,219.74,9.27012884]
[1734223482122,2.2753,219.78,219.74,6.99442884]
[1734223482427,2.02,219.79,219.7,2.02]
[1734223482627,2.02,219.79,219.72,6.99442884]
[1734223482823,21.49788782,219.79,219.72,6.99442884]
[1734223483022,11.41278745,219.78,219.72,6.99442884]
[1734223483221,11.41278745,219.77,219.72,6.99442884]
[1734223483425,2.2755,219.76,219.72,9.27032884]
[1734223483625,2.02,219.79,219.72,9.27032884]
[1734223484528,2.02,219.79,219.74,6.99442884]
[1734223484823,13.43509711,219.79,219.74,6.99442884]
[1734223485028,11.41509711,219.78,219.74,6.99442884]
[1734223485229,4.2952,219.79,219.73,2.2757]
[1734223485628,4.2952,219.79,219.74,6.99442884]
[1734223485929,13.43552924,219.79,219.74,9.27012884]
[1734223486121,2.02,219.79,219.74,9.27012884]
[1734223486527,4.2952,219.79,219.7,7.41905828]
[1734223486726,15.71435679,219.79,219.73,6.99442884]
[1734223487028,4.2952,219.79,219.73,6.99442884]
[1734223487221,2.2753,219.78,219.72,2.2759]
[1734223487419,2.2753,219.78,219.73,6.99442884]
[1734223487930,13.43969085,219.79,219.65,1.4523]
[1734223488227,2.2755,219.76,219.71,6.99442884]
[1734223489226,2.9629,219.85,219.75,6.99442884]
[1734223489426,2.2749,219.82,219.75,9.27002884]
[1734223489828,21.76012182,219.82,219.75,9.27002884]
[1734223490027,8.06663763,219.81,219.75,9.27002884]
[1734223490231,2.02,219.8,219.75,9.27002884]
[1734223490431,2.02,219.8,219.75,6.99442884]
[1734223491033,21.50522182,219.8,219.75,6.99442884]
[1734223491234,11.41858419,219.79,219.75,6.99442884]
[1734223491433,2.02,219.8,219.75,6.99442884]
[1734223491733,4.2951,219.8,219.75,6.99442884]
[1734223492227,23.78329978,219.8,219.75,6.99442884]
[1734223492427,11.42033207,219.79,219.75,6.99442884]
[1734223492630,4.2951,219.8,219.75,6.99442884]
[1734223493031,23.7846235,219.8,219.75,6.99442884]
[1734223493233,11.42110904,219.79,219.75,6.99442884]
[1734223493428,4.2951,219.8,219.75,6.99442884]
[1734223494035,15.71606878,219.8,219.75,6.99442884]
[1734223494234,11.42096878,219.79,219.75,6.99442884]
[1734223494426,11.42096878,219.78,219.75,6.99442884]
[1734223494632,2.02,219.8,219.75,9.26992884]
[1734223495141,13.44134985,219.8,219.77,6.99442884]
[1734223495334,11.42134985,219.79,219.77,6.99442884]
[1734223495539,2.02,219.82,219.77,6.99442884]
[1734223496236,15.71802042,219.82,219.77,9.26982884]
[1734223496539,11.42312042,219.81,219.77,9.26982884]
[1734223496741,4.2949,219.82,219.77,9.26982884]
[1734223497335,15.71745167,219.82,219.77,9.26982884]
[1734223497536,11.42255167,219.81,219.77,9.26982884]
[1734223497737,4.2949,219.82,219.77,9.26982884]
[1734223498339,15.7122924,219.82,219.77,9.26982884]
[1734223498538,11.4173924,219.81,219.75,9.26992884]
[1734223499343,2.2751,219.8,219.75,6.99442884]
[1734223500438,2.9629,219.85,219.77,6.99442884]
[1734223500439,11.4173924,219.81,219.77,6.99442884]
[1734223500640,2.02,219.83,219.77,6.99442884]
[1734223501138,2.9629,219.85,219.77,6.99442884]
[1734223501441,2.02,219.84,219.77,6.99442884]
[1734223501638,4.2948,219.84,219.78,2.2753]
[1734223501842,23.77665783,219.84,219.78,2.2753]
[1734223502037,11.41666388,219.83,219.78,2.2753]
[1734223502341,19.48185783,219.83,219.78,2.2753]
[1734223502543,11.41666388,219.83,219.78,2.2753]
[1734223502841,11.41666388,219.82,219.78,2.2753]
[1734223503042,2.02,219.84,219.78,2.2753]
[1734223503438,21.50044091,219.84,219.78,2.2753]
[1734223503637,21.75524091,219.83,219.78,2.2753]
[1734223503840,11.41583255,219.82,219.78,2.2753]
[1734223504039,2.2748,219.83,219.78,2.2753]
[1734223504843,13.691822,219.83,219.78,2.2753]
[1734223505235,2.2748,219.83,219.78,2.2753]
[1734223506739,13.69186826,219.83,219.78,2.2753]
[1734223506937,11.41706826,219.83,219.81,2.275]
[1734223507144,2.02,219.87,219.81,6.99442884]
[1734223507342,19.4834188,219.88,219.83,6.99442884]
[1734223507542,11.41764006,219.88,219.83,6.99442884]
[1734223507742,11.41764006,219.87,219.83,6.99442884]
[1734223507938,2.34362,219.89,219.83,6.99442884]
[1734223508644,13.76268589,219.89,219.85,2.2746]
[1734223508847,11.41906589,219.88,219.85,2.2746]
[1734223509141,2.34362,219.89,219.85,2.2746]
[1734223509443,0.32362,219.89,219.85,2.2746]
[1734223510043,0.32362,219.89,219.85,6.99442884]
[1734223510241,0.32362,219.89,219.86,2.2745]
[1734223511545,7.31804884,219.89,219.81,1.4038]
[1734223511750,18.72326215,219.89,219.82,6.99442884]
[1734223512046,20.99756215,219.89,219.82,9.26922884]
[1734223512250,9.59234884,219.89,219.82,9.26922884]
[1734223512448,11.40209576,219.88,219.82,9.26922884]
[1734223512846,9.59234884,219.89,219.82,9.26922884]
[1734223513048,9.59234884,219.89,219.82,6.99442884]
[1734223513245,9.59234884,219.89,219.83,2.2748]
[1734223513748,2.59792,219.89,219.83,2.2748]
[1734223515449,2.59792,219.89,219.84,6.99442884]
[1734223515649,0.32362,219.89,219.84,6.99442884]
[1734223515851,0.32362,219.89,219.86,6.99442884]
[1734223516748,0.32362,219.89,219.87,2.2744]
[1734223520354,0.32362,219.89,219.88,6.99442884]
[1734223520959,0.32362,219.89,219.88,9.26872884]
[1734223521455,2.2737,219.94,219.88,6.99442884]
[1734223521751,2.2737,219.94,219.89,2.2741]
[1734223523361,21.71757469,219.94,219.89,2.2741]
[1734223523558,11.39453032,219.93,219.89,2.2741]
[1734223523757,2.2737,219.94,219.89,2.2741]
[1734223524153,10.31953128,219.94,219.89,2.2741]
[1734223524354,11.38956029,219.99,219.9,6.99442884]
[1734223524556,8.04539928,219.98,219.96,6.99442884]
[1734223524765,11.3868991,219.98,219.96,6.99442884]
[1734223525062,2.2727,220.03,219.97,2.2733]
[1734223525255,0.53114,220.0,219.97,2.2733]
[1734223527260,0.53114,220.0,219.99,2.2731]
[1734223527561,12.05482884,220.07,219.99,2.2731]
[1734223527762,12.05482884,220.07,220.0,6.99442884]
[1734223528364,2.2724,220.06,220.0,9.26742884]
[1734223529266,3.0404,220.07,220.01,2.2729]
[1734223530565,3.0404,220.07,220.02,6.99442884]
[1734223531667,3.0404,220.07,219.9,1.3919]
[1734223531869,6.99442884,220.06,219.99,6.99442884]
[1734223532370,2.2725,220.06,219.99,6.99442884]
[1734223532863,3.0404,220.07,220.01,6.99442884]
[1734223534568,3.0404,220.07,220.01,9.26732884]
[1734223537572,13.59580678,220.08,220.03,6.99442884]
[1734223537875,2.2722,220.08,220.03,6.99442884]
[1734223538570,6.99442884,220.11,220.03,6.99442884]
[1734223538571,11.32059958,220.09,220.03,6.99442884]
[1734223538873,2.272,220.1,220.05,6.99442884]
[1734223539268,21.58838334,220.1,220.05,6.99442884]
[1734223539467,2.272,220.1,220.05,6.99442884]
[1734223540873,13.59107933,220.1,220.05,6.99442884]
[1734223541072,2.272,220.1,220.05,6.99442884]
[1734223541871,2.272,220.1,220.04,2.2726]
[1734223542276,2.272,220.1,220.05,6.99442884]
[1734223543174,9.01442884,220.12,220.05,6.99442884]
[1734223543175,2.2719,220.11,220.05,9.26692884]
[1734223544676,9.01442884,220.12,220.05,6.99442884]
[1734223544875,9.01442884,220.12,220.03,6.99442884]
[1734223546675,6.99442884,220.08,220.0,9.01442884]
[1734223546879,9.01442884,220.08,220.0,9.01442884]
[1734223547081,2.2726,220.05,220.0,6.99442884]
[1734223547574,9.01442884,220.08,220.0,6.99442884]
[1734223547883,2.2724,220.07,220.02,6.99442884]
[1734223549078,2.2724,220.06,220.02,6.99442884]
[1734223551880,6.99442884,220.04,219.9,1.3919]
[1734223552073,2.02,220.03,219.97,6.99442884]
[1734223552975,4.2927,220.03,219.97,9.26772884]
[1734223553373,4.2927,220.03,219.99,6.99442884]
[1734223555176,2.02,220.03,219.89,1.495]
[1734223555387,6.99442884,220.0,219.92,5.50937386]
[1734223555574,6.99442884,220.0,219.92,12.5038027]
[1734223555781,2.2732,219.98,219.92,14.7776027]
[1734223559383,2.2732,219.98,219.9,6.99442884]
[1734223559384,6.99442884,219.98,219.9,6.99442884]
[1734223560387,2.2737,219.94,219.9,6.99442884]
[1734223560684,6.99442884,219.98,219.88,6.99442884]
[1734223560685,2.02,219.95,219.88,6.99442884]